{"text_format":"1","workbook":"xlsx","n_sheets":3,"sheets":["Espacio de trabajo","Catálogo de funciones","Conjeturas"],"not_rendered":{"charts":0,"images":5,"macros":1,"external_links":1,"defined_names":0,"comments":0,"pivot_tables":0},"unopened":[],"bounds":{"document_bytes":16777216,"sheet_cells":100000,"rows_first":2000,"rows_last":500,"rows_between":2000,"halvings":0,"cell_chars":16384,"cell_head_chars":4096},"cells_cut":0,"cells_raw":0,"read":"whole","date_system":"1900"}

{"sheet":"Espacio de trabajo","index":0,"n_rows":29,"n_cols":10,"rows_kept":29,"cut":false,"hidden":false,"merged":[[1,5,2,11],[4,6,4,10],[6,6,6,10]]}
["A. Roldán 2014"]
[null,null,null,null,null,"Comprobamos conjeturas"]
[]
[]
[null,null,null,null,null,null,"Espacio de trabajo"]
[]
[null,null,null,null,null,null,"Organiza aquí tus cálculos y esquemas"]
[]
[null,null,null,null,null,null,"Inicio",10000000]
[null,null,null,null,null,null,"Valor de k",1000]
[]
[null,null,null,null,null,null,null,"p","p+k","ESPRIMO"]
[null,null,null,null,null,null,null,{"$f":"[1]!primprox(H9)","v":10000019},{"$f":"H13+H$10","v":10001019},{"$f":"[1]!esprimo(I13)","v":false}]
[null,null,null,null,null,null,null,{"$f":"[1]!primprox(H13)","v":10000079},{"$f":"H14+H$10","v":10001079},{"$f":"[1]!esprimo(I14)","v":false}]
[null,null,null,null,null,null,null,{"$f":"[1]!primprox(H14)","v":10000103},{"$f":"H15+H$10","v":10001103},false]
[null,null,null,null,null,null,null,10000121,10001121,false]
[null,null,null,null,null,null,null,10000139,{"$f":"H17+H$10","v":10001139},false]
[null,null,null,null,null,null,null,10000141,10001141,false]
[null,null,null,null,null,null,null,10000169,10001169,false]
[null,null,null,null,null,null,null,10000189,10001189,false]
[null,null,null,null,null,null,null,10000223,10001223,false]
[null,null,null,null,null,null,null,10000229,10001229,false]
[null,null,null,null,null,null,null,{"$f":"[1]!primprox(H22)","v":10000247},{"$f":"H23+H$10","v":10001247},false]
[null,null,null,null,null,null,null,10000253,10001253,false]
[null,null,null,null,null,null,null,10000261,10001261,true]
[null,null,null,null,null,null,null,10000271,10001271,false]
[null,null,null,null,null,null,null,10000303,10001303,false]
[null,null,null,null,null,null,null,10000339,10001339,false]
[null,null,null,null,null,null,null,10000349,10001349,false]

{"sheet":"Catálogo de funciones","index":1,"n_rows":18,"n_cols":6,"rows_kept":18,"cut":false,"hidden":false,"merged":[[1,5,2,11]]}
[]
[null,null,null,null,null,"Catálogo de funciones"]
[]
[]
[]
[null,null,null,"esprimo","Devuelve VERDADERO  o FALSO"]
[]
[null,null,null,"primprox","Encuentra el menor número primo mayor que el dado"]
[]
[null,null,null,"primant","Encuentra el mayor primo menor que el dado"]
[]
[null,null,null,"ppi","Cuenta los primos que existen hasta N inclusive (No escribimos PI para que no se confunda con el número)"]
[]
[null,null,null,"primentre","Cuenta los primos entre a y b sin incluir a ninguno de los dos"]
[]
[null,null,null,"numgoldbach","Cuenta los pares de primos que cumplen la conjetura de Goldbach para un número dado"]
[]
[null,null,null,"polignac","Dado un número N y una diferencia K, encuentra el primer par de primos siguientes a N con diferencia K"]

{"sheet":"Conjeturas","index":2,"n_rows":101,"n_cols":11,"rows_kept":101,"cut":false,"hidden":false,"merged":[[1,5,2,11]]}
[]
[null,null,null,null,null,"Imágenes de enunciados"]
[]
[]
[]
[null,null,null,"Conjetura de Andrica"]
[]
[]
[]
[]
[]
[]
[]
[]
[]
[]
[]
[]
[]
[]
[]
[]
[]
[null,null,null,null,null,null,null,null,"Fuente: http://es.wikipedia.org/wiki/Conjetura_de_Andrica"]
[]
[]
[]
[]
[]
[]
[]
[]
[]
[null,null,null,null,null,null,null,null,"Fuente: http://mathworld.wolfram.com/AndricasConjecture.html"]
[]
[null,null,null,"Conjetura de Legendre"]
[]
[]
[]
[]
[]
[]
[]
[null,null,null,null,null,null,null,"Fuente: http://es.wikipedia.org/wiki/Conjetura_de_Legendre"]
[]
[]
[]
[null,null,null,"Conjetura de Goldbach"]
[]
[]
[]
[]
[]
[]
[]
[]
[]
[]
[]
[]
[]
[]
[]
[]
[]
[]
[]
[]
[]
[]
[]
[]
[null,null,null,null,null,null,null,null,"Fuente:  http://es.wikipedia.org/wiki/Conjetura_de_Goldbach"]
[]
[]
[null,null,null,"Conjetura de Polignac"]
[]
[]
[]
[]
[]
[]
[]
[]
[]
[]
[]
[]
[]
[]
[]
[]
[]
[]
[]
[]
[]
[]
[]
[]
[null,null,null,null,null,null,null,null,null,"Fuente:","http://en.wikipedia.org/wiki/Polignac%27s_conjecture"]